fUST/lending_fUST_20240309
["ID","MTS","AMOUNT","RATE_DAILY","PERIOD"]
[317846532,1709965846583,-157.35216109,0.00022191,2]
[317846533,1709965846593,-501.0,0.00022192,2]
[317846534,1709965846603,-1575.81270704,0.000222,12]
[317846535,1709965846614,-501.0,0.00022466,2]
[317846536,1709965846625,-620.49529066,0.00022529,2]
[317846537,1709965846634,-33201.6486498,0.00022639,2]
[317846538,1709965846644,-1500.0,0.00022684,2]
[317846539,1709965846654,-300.0,0.000227,10]
[317846540,1709965846663,-1500.0,0.00022729,2]
[317846541,1709965846673,-500.0,0.00022738,2]
[317846542,1709965846683,-500.0,0.00022738,2]
[317846543,1709965846692,-500.0,0.00022738,2]
[317846544,1709965846702,-500.0,0.00022738,2]
[317846545,1709965846711,-202.49728725,0.00022738,2]
[317846546,1709965846720,-264.19378659,0.00022738,2]
[317846547,1709965846729,-503.06796179,0.00022738,2]
[317846548,1709965846739,-178.83026323,0.00022738,2]
[317846549,1709965846752,-151.0,0.00022738,2]
[317846550,1709965846761,-151.0,0.00022738,2]
[317846551,1709965846879,-151.0,0.00022738,2]
[317846552,1709965846889,-499.73518541,0.00022739,2]
[317846553,1709965846900,-39681.58983825,0.00022739,2]
[317846554,1709965846913,-66152.67328617,0.00022739,2]
[317846555,1709965846922,-500.0,0.00022739,2]
[317846556,1709965846932,-500.59396932,0.00022739,2]
[317846557,1709965846942,-500.0,0.00022739,2]
[317846558,1709965846951,-500.88382451,0.00022739,2]
[317846559,1709965846960,-500.0,0.00022739,2]
[317846560,1709965846970,-500.0,0.00022739,2]
[317846561,1709965846979,-443.51149978,0.00022739,2]
[317846562,1709965846989,-500.0,0.00022739,2]
[317846563,1709965847000,-500.0,0.00022739,2]
[317846564,1709965847009,-297.52538774,0.00022739,2]
[317846565,1709965847018,-208.1665336,0.00022739,2]
[317846566,1709965847030,-291.8334664,0.00022739,2]
[317846567,1709965847038,-363.92795977,0.00022739,2]
[317846568,1709965847054,-500.0,0.00022739,2]
[317846569,1709965847064,-500.0,0.00022739,2]
[317846570,1709965847073,-99.96333985,0.00022739,2]
[317846573,1709966121019,-524.39336891,0.00017554,2]
[317846574,1709966121056,-290.48375637,0.00017555,2]
[317846575,1709966121093,-155.15360207,0.00017556,2]
[317846576,1709966124670,155.15515516,0.00017553,2]
[317846623,1709966498004,166.666666,0.00019827,2]
[317846632,1709966781987,490.26912273,0.000189,2]
[317846645,1709966840842,278.593046,0.00019292,2]
[317846684,1709967034278,-155.15515516,0.00020196,2]
[317846685,1709967034288,-155.15515516,0.00020196,2]
[317846686,1709967034298,-466.5059754,0.00020197,2]
[317846687,1709967034307,-669.17996548,0.00020197,2]
[317846688,1709967034317,-269.15280228,0.00020198,2]
[317846689,1709967034326,-155.15515516,0.00020199,2]
[317846690,1709967034335,-186.99132219,0.00020206,2]
[317846691,1709967034345,-300.0,0.00020336,2]
[317846692,1709967034354,-4534.55058917,0.00020337,2]
[317846693,1709967034366,-6953.4284924,0.00020337,2]
[317846694,1709967034378,-425.6300006,0.00020337,2]
[317846695,1709967034387,-15668.8365432,0.00020338,2]
[317846822,1709967040462,-2691.83251717,0.00020338,2]
[317846825,1709967040473,-185.11406145,0.00021748,2]
[317846826,1709967040484,-183.01306894,0.00021848,2]
[317846828,1709967040493,-166.0,0.00022,2]
[317846830,1709967040502,-1383.28899481,0.00022639,2]
[317846832,1709967040513,-2328.74197365,0.00022639,2]
[317846834,1709967040524,-21087.99440021,0.00022639,2]
[317846893,1709967049673,-55553.7995453,0.00022639,2]
[317846894,1709967049683,-1500.0,0.00022686,2]
[317846895,1709967049693,-580.354655,0.000227,10]
[317846896,1709967049702,-1500.0,0.00022734,2]
[317846897,1709967049712,-500.0,0.00022738,2]
[317846898,1709967049721,-500.0,0.00022738,2]
[317846899,1709967049730,-253.68897254,0.00022738,2]
[317846900,1709967049740,-500.0,0.00022738,2]
[317846901,1709967049752,-500.0,0.00022738,2]
[317846902,1709967049761,-458.15882424,0.00022738,2]
[317846903,1709967049770,-500.0,0.00022738,2]
[317846904,1709967049779,-500.0,0.00022738,2]
[317846905,1709967049788,-159.49883185,0.00022738,2]
[317846906,1709967049798,-250.0,0.00022738,2]
[317846907,1709967049809,-500.0,0.00022738,2]
[317846908,1709967049818,-500.0,0.00022738,2]
[317846909,1709967049829,-500.0,0.00022738,2]
[317846910,1709967049838,-500.0,0.00022738,2]
[317846911,1709967049847,-500.0,0.00022738,2]
[317846912,1709967049856,-500.0,0.00022738,2]
[317846913,1709967049866,-500.0,0.00022738,2]
[317846914,1709967049877,-500.0,0.00022738,2]
[317846915,1709967049886,-500.0,0.00022738,2]
[317846916,1709967049896,-500.0,0.00022738,2]
[317846917,1709967049907,-500.0,0.00022738,2]
[317846918,1709967049916,-271.99094294,0.00022738,2]
[317846919,1709967049925,-500.0,0.00022738,2]
[317846920,1709967049934,-500.0,0.00022738,2]
[317846921,1709967049943,-500.0,0.00022738,2]
[317846922,1709967049955,-500.0,0.00022738,2]
[317846923,1709967049964,-599.22381203,0.00022738,2]
[317846924,1709967049973,-499.73518541,0.00022739,2]
[317846925,1709967049983,-505.19828263,0.00022739,2]
[317846926,1709967049992,-506.56543856,0.00022739,2]
[317846927,1709967050002,-500.0,0.00022739,2]
[317846928,1709967050011,-502.28992353,0.00022739,2]
[317846929,1709967050020,-500.0,0.00022739,2]
[317846930,1709967050029,-503.86476032,0.00022739,2]
[317846931,1709967050038,-500.0,0.00022739,2]
[317846932,1709967050049,-269.13405949,0.00022739,2]
[317846933,1709967050059,-399.84591918,0.00022739,2]
[317846934,1709967050068,-504.9818198,0.00022739,2]
[317846935,1709967050077,-500.0,0.00022739,2]
[317846936,1709967050087,-504.95408874,0.00022739,2]
[317846937,1709967050097,-347.25741498,0.00022739,2]
[317846938,1709967050108,-500.0,0.00022739,2]
[317846939,1709967050119,-564.94406385,0.00022739,2]
[317846940,1709967050128,-395.02182134,0.00022739,2]
[317846941,1709967050137,-170.36538948,0.00022739,2]
[317846942,1709967050147,-500.0,0.00022739,2]
[317846943,1709967050158,-505.34812738,0.00022739,2]
[317846944,1709967050168,-500.42137353,0.00022739,2]
[317846945,1709967050177,-501.04755925,0.00022739,2]
[317846946,1709967050187,-500.0,0.00022739,2]
[317846947,1709967050196,-626.41136914,0.00022739,2]
[317846948,1709967050205,-246.41359066,0.00022739,2]
[317846949,1709967050215,-500.0,0.00022739,2]
[317846950,1709967050224,-500.0,0.00022739,2]
[317846951,1709967050233,-500.0,0.00022739,2]
[317846952,1709967050242,-500.0,0.00022739,2]
[317846953,1709967050251,-598.68191474,0.00022739,2]
[317846954,1709967050260,-502.14430597,0.00022739,2]
[317846955,1709967050270,-515.42209116,0.00022739,2]
[317846956,1709967050279,-1473.29,0.00022739,2]
[317846957,1709967050288,-1473.29,0.00022739,2]
[317846958,1709967050298,-1473.29,0.00022739,2]
[317846959,1709967050307,-1473.29,0.00022739,2]
[317846960,1709967050316,-500.0,0.00022739,2]
[317846961,1709967050326,-500.0,0.00022739,2]
[317846962,1709967050335,-500.0,0.00022739,2]
[317846963,1709967050344,-507.33242679,0.00022739,2]
[317846964,1709967050353,-3690.54,0.00022739,2]
[317846965,1709967050362,-3690.54,0.00022739,2]
[317846966,1709967050372,-3690.54,0.00022739,2]
[317846967,1709967050381,-3690.54,0.00022739,2]
[317846968,1709967050390,-500.0,0.00022739,2]
[317846969,1709967050399,-500.0,0.00022739,2]
[317846970,1709967050410,-500.0,0.00022739,2]
[317846971,1709967050419,-500.0,0.00022739,2]
[317846972,1709967050429,-500.0,0.00022739,2]
[317846973,1709967050438,-500.0,0.00022739,2]
[317846974,1709967050447,-711.28,0.00022739,2]
[317846975,1709967050456,-711.28,0.00022739,2]
[317846976,1709967050466,-711.28,0.00022739,2]
[317846977,1709967050475,-711.28,0.00022739,2]
[317846978,1709967050484,-500.0,0.00022739,2]
[317846979,1709967050493,-500.0,0.00022739,2]
[317846980,1709967050502,-500.0,0.00022739,2]
[317846981,1709967050512,-500.0,0.00022739,2]
[317846982,1709967050521,-500.0,0.00022739,2]
[317846983,1709967050530,-229.65,0.00022739,2]
[317846984,1709967050539,-500.0,0.00022739,2]
[317846985,1709967050549,-502.30756128,0.00022739,2]
[317846986,1709967050558,-343.72016968,0.00022739,2]
[317846987,1709967050568,-502.41769367,0.00022739,2]
[317846988,1709967050577,-504.58091949,0.00022739,2]
[317846989,1709967050586,-501.0,0.0002274,2]
[317846990,1709967050595,-1500.0,0.00022782,2]
[317846991,1709967050604,-1000.08828831,0.00022809,2]
[317846992,1709967050614,-1500.0,0.00022831,2]
[317846993,1709967050736,-1500.0,0.00022879,2]
[317846994,1709967050745,-3057.62429999,0.0002288,2]
[317846995,1709967050755,-1603.60241116,0.000229,2]
[317846996,1709967050764,-1500.0,0.00022927,2]
[317846997,1709967050773,-3690.54,0.00022973,2]
[317846998,1709967050782,-1473.29,0.00022974,2]
[317846999,1709967050792,-711.28,0.00022974,2]
[317847000,1709967050802,-4251.45933015,0.00022975,2]
[317847001,1709967050812,-1500.0,0.00022975,2]
[317847002,1709967050822,-500.0,0.00022996,2]
[317847003,1709967050831,-500.0,0.00022996,2]
[317847004,1709967050840,-500.0,0.00022996,2]
[317847005,1709967050849,-500.0,0.00022997,2]
[317847006,1709967050858,-500.0,0.00022997,2]
[317847007,1709967050868,-500.0,0.00022997,2]
[317847008,1709967050878,-1473.29,0.00022997,2]
[317847009,1709967050887,-1473.29,0.00022997,2]
[317847010,1709967050897,-3690.54,0.00022997,2]
[317847011,1709967050908,-3690.54,0.00022997,2]
[317847012,1709967050917,-500.0,0.00022997,2]
[317847013,1709967050926,-711.28,0.00022997,2]
[317847014,1709967050935,-711.28,0.00022997,2]
[317847015,1709967050944,-500.0,0.00022997,2]
[317847016,1709967050953,-703.84232715,0.00022998,2]
[317847017,1709967050962,-178.5669557,0.00022998,2]
[317847018,1709967050971,-429.03125533,0.00022998,2]
[317847019,1709967050981,-238.57992796,0.00022998,2]
[317847020,1709967050990,-190.170623,0.00022998,2]
[317847021,1709967051000,-4185.11997358,0.00022998,2]
[317847022,1709967051010,-225.64566837,0.00022998,2]
[317847023,1709967051019,-288.80623969,0.00022998,2]
[317847024,1709967051029,-1072.46751182,0.00022998,2]
[317847025,1709967051038,-31.37255336,0.00022998,2]
[317847026,1709967051066,-4505.43696843,0.00022998,2]
[317847069,1709967707047,24890.0,0.00019865,2]
[317847073,1709967879874,155.12222845,0.0002,2]
[317847079,1709967987498,376.84608182,0.000189,2]
[317847131,1709968232706,-269.15280228,0.00020355,2]
[317847132,1709968232715,-155.10702385,0.00020356,2]
[317847133,1709968232724,-155.10702385,0.00020357,2]
[317847134,1709968232733,-311.0039836,0.00020357,2]
[317847135,1709968232743,-178.639582,0.00021095,2]
[317847136,1709968232752,-170.3347904,0.00021725,2]
[317847137,1709968232762,-386.0,0.00022,2]
[317847139,1709968232771,-386.0,0.00022192,2]
[317847141,1709968232780,-6035.35643925,0.00022465,2]
[317847226,1709968247179,-927.20229121,0.00022465,2]
[317847239,1709968542394,178.639582,0.00019178,2]
[317847246,1709968672142,24900.0,0.00019467,2]
[317847247,1709968673754,264.7865504,0.00019498,2]
[317847253,1709968928056,8255.6366116,0.00019465,2]
[317847256,1709969072699,178.639582,0.0001942,2]
[317847259,1709969118921,4480.772913,0.00019684,2]
[317847267,1709969193648,324.26445384,0.000189,2]
[317847353,1709969433930,-269.15280228,0.00020098,2]
[317847355,1709969433941,-669.17996548,0.00020098,2]
[317847357,1709969433950,-155.13030946,0.00020099,2]
[317847358,1709969433961,-259.16998633,0.00020099,2]
[317847359,1709969433969,-524.39336891,0.00020099,2]
[317847361,1709969433979,-1018.19447652,0.000201,2]
[317847362,1709969433989,-238.88134012,0.000202,2]
[317847364,1709969433999,-336.64420361,0.00020201,2]
[317847366,1709969434010,-11913.60908217,0.00020204,2]
[317847367,1709969434020,-171.80030983,0.0002142,2]
[317847368,1709969434029,-8500.0,0.0002151,2]
[317847369,1709969434039,-8300.0,0.0002152,2]
[317847370,1709969434049,-8400.0,0.0002153,2]
[317847371,1709969434058,-8600.0,0.0002154,2]
[317847372,1709969434067,-7701.25,0.0002155,2]
[317847373,1709969434077,-178.639582,0.00022068,2]
[317847374,1709969434086,-499.73518541,0.00022465,2]
[317847375,1709969434096,-386.0,0.00022466,2]
[317847376,1709969434105,-158.579166,0.00022653,2]
[317847377,1709969434115,-190.168358,0.00022653,2]
[317847378,1709969434123,-500.0,0.00022739,2]
[317847379,1709969434132,-500.0,0.00022739,2]
[317847380,1709969434142,-154.97090012,0.00022739,2]
[317847381,1709969434150,-34.34998689,0.00022739,2]
[317847382,1709969434162,-465.65001311,0.00022739,2]
[317847383,1709969434171,-500.0,0.00022739,2]
[317847384,1709969434180,-155.30820235,0.00022739,2]
[317847385,1709969434190,-503.71087874,0.00022739,2]
[317847386,1709969434199,-1043.58,0.00022739,2]
[317847387,1709969434208,-2614.13,0.00022739,2]
[317847388,1709969434218,-500.0,0.00022739,2]
[317847389,1709969434227,-503.82,0.00022739,2]
[317847390,1709969434235,-386.0,0.0002274,2]
[317847391,1709969434244,-197.04010283,0.00022797,2]
[317847392,1709969434253,-303.62004527,0.0002289,2]
[317847393,1709969434263,-49.75215258,0.00022896,2]
[317847394,1709969434274,-1175.52770756,0.00022896,2]
[317849862,1709969463199,155.13030946,0.000189,2]
[317851146,1709969973102,385.0,0.0002,2]
[317851161,1709970081558,165.393169,0.00019775,2]
[317851168,1709970298315,155.13030946,0.00019775,2]
[317851169,1709970318314,155.13030946,0.00019775,2]
[317851170,1709970336318,155.13030946,0.00019775,2]
[317851173,1709970354319,155.13030946,0.00019775,2]
[317851177,1709970399354,459.75315009,0.000189,2]
[317851187,1709970439837,167.353422,0.00019891,2]
[317851232,1709970632013,-155.13030946,0.00020175,2]
[317851234,1709970632022,-269.15280228,0.00020176,2]
[317851236,1709970632032,-336.64420361,0.00020177,2]
[317851238,1709970632041,-3144.25044046,0.00020177,2]
[317851240,1709970632051,-6500.92825198,0.00020178,2]
[317851242,1709970632060,-155.13030946,0.00020178,2]
[317851244,1709970632070,-15558.54249839,0.00022,2]
[317851247,1709970632081,-3184.63469444,0.00022,2]
[317853293,1709970657632,827.4200375,0.00019982,2]
[317856703,1709970700756,306.50210006,0.000199,2]
[317856707,1709970852427,7292.02762142,0.00018179,2]
[317856709,1709970951677,167.353421,0.00019874,2]
[317856710,1709971001918,204.33473337,0.000199,2]
[317856712,1709971099649,24900.0,0.00019481,2]
[317856715,1709971604339,201.17698159,0.000189,2]
[317856722,1709971735472,218.92941117,0.00018806,2]
[317856765,1709971832217,-155.13030946,0.0002004,2]
[317856766,1709971832226,-336.64420361,0.00020041,2]
[317856768,1709971832237,-155.13030946,0.00020042,2]
[317856769,1709971832246,-3064.22355126,0.00020081,2]
[317856771,1709971832258,-362.95452614,0.00020081,2]
[317856772,1709971832272,-906.77409058,0.00020081,2]
[317856776,1709971832282,-1069.66253688,0.00020082,2]
[317856778,1709971832292,-202.25268221,0.000201,2]
[317856779,1709971832302,-300.0,0.00021142,2]
[317856780,1709971832315,-604.94140876,0.00021143,2]
[317861510,1709972548941,162.218824,0.00019178,2]
[317861512,1709972618413,24900.0,0.00019512,2]
[317861513,1709972809191,184.11798773,0.000189,2]
[317861516,1709972888772,155.13030946,0.000189,2]
[317861517,1709972910776,155.13030946,0.000189,2]
[317861518,1709972932816,155.13030946,0.000189,2]
[317861519,1709972950773,155.13030946,0.000189,2]
[317861526,1709972972799,155.13030946,0.000189,2]
[317861535,1709972990879,238.0152937,0.000189,2]
[317861580,1709973034413,-336.64420361,0.00020033,2]
[317861581,1709973034423,-155.13030946,0.00020034,2]
[317861582,1709973034431,-773.48840267,0.00020034,2]
[317861604,1709973039182,-2838.13840398,0.00020034,2]
[317861606,1709973039192,-1606.48981594,0.00020035,2]
[317861608,1709973039202,-155.13030946,0.00020036,2]
[317861610,1709973039211,-400.0,0.0002008,2]
[317861612,1709973039220,-400.0,0.0002108,2]
[317861614,1709973039230,-1431.24147062,0.00021142,2]
[317861617,1709973039242,-6070.70555723,0.00021142,2]
[317861619,1709973039252,-172.68247368,0.00022,2]
[317861621,1709973039261,-314.0,0.00022,2]
[317861622,1709973039270,-314.0,0.00022192,2]
[317861624,1709973039280,-499.73518541,0.000222,2]
[317861627,1709973039289,-314.0,0.00022466,2]
[317861629,1709973039300,-4827.91270892,0.00022739,2]
[317861631,1709973039309,-500.0,0.00022739,2]
[317861633,1709973039318,-500.0,0.00022739,2]
[317861635,1709973039328,-160.98,0.00022739,2]
[317861637,1709973039337,-500.0,0.00022739,2]
[317861638,1709973039347,-500.0,0.00022739,2]
[317861640,1709973039356,-502.92702341,0.00022739,2]
[317861643,1709973039366,-238.525693,0.00022739,2]
[317861645,1709973039375,-238.525693,0.00022739,2]
[317861646,1709973039385,-365.19507416,0.00022739,2]
[317861648,1709973039395,-500.0,0.00022739,2]
[317861651,1709973039404,-500.0,0.00022739,2]
[317861652,1709973039414,-500.0,0.00022739,2]
[317861655,1709973039424,-232.49129884,0.00022739,2]
[317861657,1709973039434,-502.51,0.00022739,2]
[317861659,1709973039444,-1000.1,0.00022739,2]
[317861660,1709973039453,-500.0,0.00022739,2]
[317861662,1709973039463,-314.0,0.0002274,2]
[317861665,1709973039473,-362.95452614,0.00022799,2]
[317861667,1709973039483,-625.0,0.00022894,2]
[317861668,1709973039492,-2503.14,0.00022896,2]
[317861671,1709973039502,-243.84888128,0.00022897,2]
[317861773,1709973040413,-381.15111872,0.00022897,2]
[317861775,1709973040422,-500.0,0.00022897,2]
[317861777,1709973040432,-500.0,0.00022897,2]
[317861779,1709973040441,-160.98,0.00022897,2]
[317861781,1709973040450,-144.41302851,0.00022897,2]
[317862172,1709973044333,-355.58697149,0.00022897,2]
[317862174,1709973044343,-500.24017723,0.00022897,2]
[317862176,1709973044353,-238.525693,0.00022897,2]
[317862178,1709973044363,-238.525693,0.00022897,2]
[317862180,1709973044372,-238.525693,0.00022897,2]
[317862182,1709973044381,-238.525693,0.00022897,2]
[317862184,1709973044391,-500.0,0.00022897,2]
[317862186,1709973044401,-500.0,0.00022897,2]
[317862188,1709973044410,-500.0,0.00022897,2]
[317862190,1709973044420,-502.51,0.00022897,2]
[317862192,1709973044429,-1000.1,0.00022897,2]
[317862194,1709973044438,-500.0,0.00022897,2]
[317862196,1709973044448,-625.0,0.00022898,2]
[317862198,1709973044457,-625.0,0.00022898,2]
[317862200,1709973044466,-625.0,0.00022898,2]
[317862202,1709973044475,-625.0,0.00022898,2]
[317862204,1709973044484,-625.0,0.00022898,2]
[317862206,1709973044494,-625.0,0.00022898,2]
[317862208,1709973044503,-238.525693,0.00022898,2]
[317862210,1709973044512,-238.525693,0.00022898,2]
[317862212,1709973044521,-238.525693,0.00022898,2]
[317862214,1709973044531,-238.525693,0.00022898,2]
[317862216,1709973044540,-238.525693,0.00022898,2]
[317862218,1709973044550,-238.525693,0.00022898,2]
[317862220,1709973044559,-220.01365722,0.000229,14]
[317866657,1709973454306,6600.0,0.0002,2]
[317866662,1709973783826,178.6395848,0.00019178,2]
[317866787,1709974234746,-155.12720431,0.00020283,2]
[317866789,1709974234755,-1606.48981594,0.00020284,2]
[317866790,1709974234765,-155.12720431,0.00020285,2]
[317866793,1709974234775,-8483.31914827,0.00020285,2]
[317866796,1709974234784,-3611.62680665,0.00020286,2]
[317866799,1709974234794,-300.0,0.00020289,2]
[317866800,1709974234803,-24900.0,0.00020834,2]
[317866801,1709974234812,-202.25268222,0.00021,2]
[317866802,1709974234821,-488.74900891,0.00021848,2]
[317866803,1709974234830,-1273.08716982,0.00022,2]
[317866804,1709974234839,-400.0,0.0002209,2]
[317866805,1709974234849,-500.24655683,0.000221,2]
[317866806,1709974234858,-500.0,0.00022739,2]
[317866807,1709974234868,-577.13,0.00022739,2]
[317866808,1709974234878,-500.0,0.00022739,2]
[317866809,1709974234887,-500.0,0.00022739,2]
[317866810,1709974234896,-151.0,0.00022739,2]
[317866811,1709974234905,-500.0,0.00022739,2]
[317866812,1709974234914,-500.48940111,0.00022739,2]
[317866813,1709974234923,-500.88814592,0.00022739,2]
[317866814,1709974234932,-500.0,0.00022739,2]
[317866815,1709974234942,-500.0,0.00022739,2]
[317866816,1709974234952,-500.0,0.00022739,2]
[317866817,1709974234961,-500.0,0.00022739,2]
[317866818,1709974234970,-500.0,0.00022739,2]
[317866819,1709974234981,-500.0,0.00022739,2]
[317866820,1709974234991,-2168.9,0.00022739,2]
[317866821,1709974235000,-500.0,0.00022739,2]
[317866822,1709974235009,-2398.84,0.00022739,2]
[317866823,1709974235018,-400.0,0.0002288,2]
[317866824,1709974235027,-400.0,0.0002289,2]
[317866825,1709974235037,-500.0,0.00022896,2]
[317866826,1709974235046,-500.0,0.00022896,2]
[317866827,1709974235056,-151.0,0.00022896,2]
[317866828,1709974235065,-500.0,0.00022896,2]
[317866829,1709974235075,-500.0,0.00022896,2]
[317866830,1709974235084,-384.40152184,0.00022896,2]
[317866831,1709974235093,-151.0,0.00022896,2]
[317866832,1709974235102,-151.0,0.00022896,2]
[317866833,1709974235112,-151.0,0.00022896,2]
[317866834,1709974235121,-203.312824,0.00022897,2]
[317866835,1709974235130,-500.0,0.00022897,2]
[317866836,1709974235140,-500.0,0.00022897,2]
[317866837,1709974235151,-500.0,0.00022897,2]
[317866838,1709974235161,-514.15724835,0.00022897,2]
[317866839,1709974235170,-500.0,0.00022897,2]
[317866840,1709974235180,-151.0,0.00022897,2]
[317866841,1709974235191,-151.0,0.00022897,2]
[317866842,1709974235200,-2168.9,0.00022897,2]
[317866843,1709974235209,-384.33896051,0.00022897,2]
[317866844,1709974235218,-2398.84,0.00022897,2]
[317866845,1709974235227,-500.0,0.00022898,2]
[317866846,1709974235239,-500.0,0.00022898,2]
[317866847,1709974235248,-500.0,0.00022898,2]
[317866848,1709974235258,-500.0,0.00022898,2]
[317866849,1709974235267,-184.9223812,0.00022898,2]
[317866850,1709974235277,-500.0,0.00022898,2]
[317866851,1709974235286,-500.0,0.00022898,2]
[317866852,1709974235295,-500.0,0.00022898,2]
[317866853,1709974235304,-500.0,0.00022898,2]
[317866854,1709974235326,-500.0,0.00022898,2]
[317866855,1709974235335,-500.0,0.00022898,2]
[317866856,1709974235344,-458.0,0.00022898,2]
[317866857,1709974235353,-500.0,0.00022898,2]
[317866858,1709974235362,-173.29677522,0.00022898,2]
[317866859,1709974235377,-126.70322478,0.00022898,2]
[317866860,1709974235386,-500.0,0.00022898,2]
[317866861,1709974235395,-500.0,0.00022898,2]
[317866862,1709974235405,-500.0,0.00022898,2]
[317866863,1709974235415,-151.0,0.00022898,2]
[317866864,1709974235424,-151.0,0.00022898,2]
[317866865,1709974235434,-151.0,0.00022898,2]
[317866866,1709974235443,-151.0,0.00022898,2]
[317866867,1709974235453,-151.0,0.00022898,2]
[317866868,1709974235463,-151.0,0.00022898,2]
[317866869,1709974235473,-247.205538,0.00022898,2]
[317866870,1709974235484,-500.0,0.00022898,2]
[317866871,1709974235493,-500.0,0.00022898,2]
[317866872,1709974235503,-500.0,0.00022898,2]
[317866873,1709974235512,-500.0,0.00022898,2]
[317866874,1709974235522,-500.0,0.00022898,2]
[317866875,1709974235532,-500.0,0.00022898,2]
[317866876,1709974235541,-577.13,0.00022898,2]
[317866877,1709974235551,-577.13,0.00022898,2]
[317866878,1709974235561,-577.13,0.00022898,2]
[317866879,1709974235570,-577.13,0.00022898,2]
[317866880,1709974235580,-577.13,0.00022898,2]
[317866881,1709974235589,-577.13,0.00022898,2]
[317866882,1709974235599,-403.58313147,0.00022898,2]
[317866883,1709974235609,-500.0,0.00022898,2]
[317866884,1709974235618,-500.0,0.00022898,2]
[317866885,1709974235628,-500.0,0.00022898,2]
[317866886,1709974235638,-500.0,0.00022898,2]
[317866887,1709974235647,-500.0,0.00022898,2]
[317866888,1709974235657,-500.0,0.00022898,2]
[317866889,1709974235666,-500.0,0.00022898,2]
[317866890,1709974235675,-500.0,0.00022898,2]
[317866891,1709974235685,-500.0,0.00022898,2]
[317866892,1709974235695,-500.0,0.00022898,2]
[317866893,1709974235704,-500.0,0.00022898,2]
[317866894,1709974235714,-500.0,0.00022898,2]
[317866895,1709974235723,-500.0,0.00022898,2]
[317866896,1709974235734,-500.0,0.00022898,2]
[317866897,1709974235744,-500.0,0.00022898,2]
[317866898,1709974235754,-500.0,0.00022898,2]
[317866899,1709974235764,-500.0,0.00022898,2]
[317866900,1709974235774,-500.0,0.00022898,2]
[317866901,1709974235784,-575.18897731,0.00022898,2]
[317866902,1709974235794,-500.0,0.00022898,2]
[317866903,1709974235804,-501.91348575,0.00022898,2]
[317866904,1709974235814,-500.0,0.00022898,2]
[317866905,1709974235824,-500.0,0.00022898,2]
[317866906,1709974235833,-417.83688578,0.00022898,2]
[317866907,1709974235843,-500.0,0.00022898,2]
[317866908,1709974235853,-500.0,0.00022898,2]
[317866909,1709974235863,-500.0,0.00022898,2]
[317866910,1709974235872,-500.0,0.00022898,2]
[317866911,1709974235882,-500.0,0.00022898,2]
[317866912,1709974235892,-500.0,0.00022898,2]
[317866913,1709974235902,-151.0,0.00022898,2]
[317866914,1709974235912,-151.0,0.00022898,2]
[317866915,1709974235923,-151.0,0.00022898,2]
[317866916,1709974235933,-151.0,0.00022898,2]
[317866917,1709974235943,-151.0,0.00022898,2]
[317866918,1709974235952,-285.573678,0.00022898,2]
[317866919,1709974235963,-151.11693,0.00022898,2]
[317866920,1709974235973,-2168.9,0.00022898,2]
[317866921,1709974235984,-2168.9,0.00022898,2]
[317866922,1709974235994,-2168.9,0.00022898,2]
[317866923,1709974236004,-2168.9,0.00022898,2]
[317866924,1709974236014,-2168.9,0.00022898,2]